[Event "GrandPrix_30.05"]
[Site "Chess.com"]
[Date "2020.05.30"]
[Round "8"]
[White "Sanan_Sjugirov"]
[Black "SavelijTartakover"]
[Result "1-0"]
[WhiteElo "2699"]
[BlackElo "2519"]
[TimeControl "600+2"]
[EndTime "12:01:09 PDT"]
[Termination "Sanan_Sjugirov won by resignation"]

1. e4 {[%clk 0:10:01.9]} 1... e6 {[%clk 0:10:00.2]} 2. d4 {[%clk 0:10:02.3]}
2... d5 {[%clk 0:10:01.3]} 3. Nd2 {[%clk 0:10:02.3]} 3... c5 {[%clk 0:10:01.8]}
4. Ngf3 {[%clk 0:10:00.7]} 4... Nc6 {[%clk 0:10:02.2]} 5. exd5 {[%clk
0:09:58.8]} 5... exd5 {[%clk 0:10:02.6]} 6. Bb5 {[%clk 0:09:58.8]} 6... Qe7+
{[%clk 0:10:03.1]} 7. Be2 {[%clk 0:09:53.8]} 7... Qc7 {[%clk 0:10:03.8]} 8. O-O
{[%clk 0:09:49.9]} 8... Nf6 {[%clk 0:10:04]} 9. Bb5 {[%clk 0:08:10.7]} 9... cxd4
{[%clk 0:09:54.2]} 10. Nxd4 {[%clk 0:06:32.4]} 10... Be7 {[%clk 0:09:51.9]} 11.
N2f3 {[%clk 0:06:25.4]} 11... O-O {[%clk 0:09:47.9]} 12. c3 {[%clk 0:05:59]}
12... Bg4 {[%clk 0:09:42]} 13. Be2 {[%clk 0:05:59.4]} 13... Rfe8 {[%clk
0:09:13.9]} 14. Bg5 {[%clk 0:05:49.8]} 14... Ne4 {[%clk 0:08:31]} 15. Bxe7
{[%clk 0:05:47.7]} 15... Rxe7 {[%clk 0:08:32.4]} 16. Re1 {[%clk 0:05:24.5]}
16... Rae8 {[%clk 0:08:16.7]} 17. h3 {[%clk 0:05:09.5]} 17... Bxf3 {[%clk
0:07:54.8]} 18. Bxf3 {[%clk 0:04:50.7]} 18... Qb6 {[%clk 0:07:51.6]} 19. Bxe4
{[%clk 0:03:48.7]} 19... Rxe4 {[%clk 0:07:26.9]} 20. Rxe4 {[%clk 0:03:48.2]}
20... dxe4 {[%clk 0:07:16.3]} 21. Nxc6 {[%clk 0:03:33.1]} 21... bxc6 {[%clk
0:06:26.9]} 22. Qd7 {[%clk 0:02:36.1]} 22... Rd8 {[%clk 0:06:12.9]} 23. Qe7
{[%clk 0:02:36.6]} 23... g6 {[%clk 0:06:02.1]} 24. b4 {[%clk 0:02:36.6]} 24...
Rd2 {[%clk 0:05:10.2]} 25. Rf1 {[%clk 0:02:34.7]} 25... Rxa2 {[%clk 0:04:37.2]}
26. Qe8+ {[%clk 0:02:34.7]} 26... Kg7 {[%clk 0:04:36.8]} 27. Qxe4 {[%clk
0:02:36.6]} 27... Rd2 {[%clk 0:04:23.4]} 28. Qe5+ {[%clk 0:02:20.9]} 28... Kg8
{[%clk 0:04:22.9]} 29. Qf6 {[%clk 0:02:10.1]} 29... Rd8 {[%clk 0:03:21.2]} 30.
Re1 {[%clk 0:01:54.9]} 30... c5 {[%clk 0:03:20.3]} 31. Qxb6 {[%clk 0:01:32.7]}
31... axb6 {[%clk 0:03:22.2]} 32. bxc5 {[%clk 0:01:34.1]} 32... bxc5 {[%clk
0:03:22.1]} 33. Re5 {[%clk 0:01:35.3]} 33... Rc8 {[%clk 0:03:13.1]} 34. c4
{[%clk 0:01:34.7]} 34... Kf8 {[%clk 0:03:06.3]} 35. g4 {[%clk 0:01:29.2]} 35...
f6 {[%clk 0:03:06]} 36. Rd5 {[%clk 0:01:28.2]} 36... Ke7 {[%clk 0:03:06.3]} 37.
f4 {[%clk 0:01:12.2]} 37... Ra8 {[%clk 0:02:45.5]} 38. Rxc5 {[%clk 0:01:12.3]}
38... Ra3 {[%clk 0:02:42.5]} 39. Kg2 {[%clk 0:01:10.1]} 39... Rc3 {[%clk
0:02:10.5]} 40. Rc7+ {[%clk 0:01:05.9]} 40... Ke6 {[%clk 0:02:06.6]} 41. c5
{[%clk 0:00:57.5]} 41... Rc2+ {[%clk 0:01:38.4]} 42. Kf3 {[%clk 0:00:41.7]}
42... Rc3+ {[%clk 0:01:38.1]} 43. Ke4 {[%clk 0:00:22.1]} 43... f5+ {[%clk
0:01:36.2]} 44. gxf5+ {[%clk 0:00:21.8]} 44... gxf5+ {[%clk 0:01:36.8]} 45. Kd4
{[%clk 0:00:22.8]} 45... Rxh3 {[%clk 0:01:38]} 46. Rc6+ {[%clk 0:00:23.7]} 46...
Kd7 {[%clk 0:01:18.9]} 47. Rd6+ {[%clk 0:00:24.2]} 47... Ke7 {[%clk 0:00:48.8]}
48. Ke5 {[%clk 0:00:19.9]} 48... Rc3 {[%clk 0:00:48.7]} 49. Rd5 {[%clk
0:00:06.5]} 49... h5 {[%clk 0:00:48.1]} 50. Kxf5 {[%clk 0:00:07.5]} 50... h4
{[%clk 0:00:49.1]} 51. Re5+ {[%clk 0:00:04.7]} 51... Kf7 {[%clk 0:00:38.3]} 52.
Ke4 {[%clk 0:00:05.5]} 52... h3 {[%clk 0:00:18.2]} 53. Kd5 {[%clk 0:00:06.3]}
53... Rf3 {[%clk 0:00:12.9]} 54. Rh5 {[%clk 0:00:06.8]} 54... Rxf4 {[%clk
0:00:11.5]} 55. Rxh3 {[%clk 0:00:06.7]} 55... Rf6 {[%clk 0:00:12.2]} 56. c6
{[%clk 0:00:06.1]} 56... Ke7 {[%clk 0:00:11.6]} 57. Rh8 {[%clk 0:00:05.4]} 57...
Rd6+ {[%clk 0:00:08.6]} 58. Kc5 {[%clk 0:00:06.2]} 58... Rd1 {[%clk 0:00:07.9]}
59. Kb6 {[%clk 0:00:06.1]} 1-0

[Event "GrandPrix_30.05"]
[Site "Chess.com"]
[Date "2020.05.30"]
[Round "8"]
[White "Yuri202062"]
[Black "chess_big_master"]
[Result "1-0"]
[WhiteElo "2101"]
[BlackElo "2046"]
[TimeControl "600+2"]
[EndTime "12:01:11 PDT"]
[Termination "Yuri202062 won by resignation"]

1. d4 {[%clk 0:10:01.9]} 1... d5 {[%clk 0:09:59.7]} 2. c4 {[%clk 0:10:02.7]}
2... e6 {[%clk 0:10:00.9]} 3. Nc3 {[%clk 0:10:03.6]} 3... Bb4 {[%clk 0:10:01.7]}
4. e3 {[%clk 0:10:01]} 4... Nf6 {[%clk 0:09:59.6]} 5. a3 {[%clk 0:09:59.2]} 5...
Bxc3+ {[%clk 0:09:59.7]} 6. bxc3 {[%clk 0:09:59.9]} 6... c5 {[%clk 0:09:59.7]}
7. cxd5 {[%clk 0:09:59.5]} 7... exd5 {[%clk 0:10:00.1]} 8. Bd3 {[%clk
0:10:00.3]} 8... Nc6 {[%clk 0:09:46.3]} 9. Ne2 {[%clk 0:10:01]} 9... O-O {[%clk
0:09:36]} 10. f3 {[%clk 0:09:56.4]} 10... Re8 {[%clk 0:09:33.6]} 11. O-O {[%clk
0:09:56.8]} 11... Bd7 {[%clk 0:09:20.4]} 12. Ng3 {[%clk 0:09:53.8]} 12... Rc8
{[%clk 0:09:14.7]} 13. Ra2 {[%clk 0:09:52.2]} 13... Qa5 {[%clk 0:09:05.7]} 14.
Bd2 {[%clk 0:09:10.8]} 14... Qb6 {[%clk 0:09:04.8]} 15. Kh1 {[%clk 0:08:25.2]}
15... Na5 {[%clk 0:08:57.6]} 16. e4 {[%clk 0:08:08.4]} 16... cxd4 {[%clk
0:08:46.4]} 17. cxd4 {[%clk 0:08:08.3]} 17... dxe4 {[%clk 0:08:43.7]} 18. fxe4
{[%clk 0:08:05.9]} 18... Bg4 {[%clk 0:08:28.5]} 19. Qb1 {[%clk 0:07:01.2]} 19...
Nc4 {[%clk 0:07:13.4]} 20. Bg5 {[%clk 0:05:44.4]} 20... Qxd4 {[%clk 0:06:38]}
21. Bxf6 {[%clk 0:05:41.8]} 21... gxf6 {[%clk 0:06:37.7]} 22. h3 {[%clk
0:05:37.5]} 22... Be6 {[%clk 0:06:14.4]} 23. Nh5 {[%clk 0:05:05.1]} 23... Ne3
{[%clk 0:04:34]} 24. Nxf6+ {[%clk 0:05:05.2]} 24... Kf8 {[%clk 0:04:10.5]} 25.
Rf3 {[%clk 0:02:20.7]} 25... Bxa2 {[%clk 0:03:30.9]} 26. Qxa2 {[%clk 0:02:19.8]}
26... Re6 {[%clk 0:02:59.7]} 27. Nxh7+ {[%clk 0:02:11.4]} 27... Ke7 {[%clk
0:02:49]} 28. Rxf7+ {[%clk 0:02:05.5]} 28... Kd6 {[%clk 0:02:01.8]} 29. Ng5
{[%clk 0:00:37.4]} 29... Nc4 {[%clk 0:00:13.3]} 30. Nxe6 {[%clk 0:00:24.4]}
30... Qxd3 {[%clk 0:00:13.3]} 31. Qf2 {[%clk 0:00:13.3]} 31... Qxe4 {[%clk
0:00:07.9]} 32. Rf6 {[%clk 0:00:12.1]} 32... Ke7 {[%clk 0:00:06.6]} 33. Ng5
{[%clk 0:00:08.7]} 33... Qb1+ {[%clk 0:00:06.8]} 34. Kh2 {[%clk 0:00:09.3]}
34... Ne5 {[%clk 0:00:07.6]} 35. Re6+ {[%clk 0:00:08.9]} 35... Kd7 {[%clk
0:00:05.1]} 36. Rxe5 {[%clk 0:00:09.6]} 36... Qg6 {[%clk 0:00:03.9]} 37. Qf7+
{[%clk 0:00:09.9]} 37... Qxf7 {[%clk 0:00:04.9]} 38. Nxf7 {[%clk 0:00:11.4]}
38... Rc3 {[%clk 0:00:05.8]} 39. Ra5 {[%clk 0:00:10.8]} 39... a6 {[%clk
0:00:06.6]} 40. h4 {[%clk 0:00:11.5]} 40... Ke6 {[%clk 0:00:06.6]} 41. Ng5+
{[%clk 0:00:11.7]} 41... Kf6 {[%clk 0:00:07.7]} 42. Nf3 {[%clk 0:00:12.6]} 42...
Kg6 {[%clk 0:00:07.4]} 43. Kh3 {[%clk 0:00:13.8]} 43... Rb3 {[%clk 0:00:06.9]}
44. Rg5+ {[%clk 0:00:13.4]} 44... Kf6 {[%clk 0:00:07.9]} 45. a4 {[%clk
0:00:14.5]} 45... b6 {[%clk 0:00:06.5]} 46. Rh5 {[%clk 0:00:12.5]} 46... Rb4
{[%clk 0:00:06.2]} 47. Rh6+ {[%clk 0:00:12.4]} 47... Kg7 {[%clk 0:00:07.1]} 48.
Rc6 {[%clk 0:00:12.2]} 48... a5 {[%clk 0:00:07.2]} 49. g4 {[%clk 0:00:11.2]}
49... Rxa4 {[%clk 0:00:07]} 50. Rxb6 {[%clk 0:00:11.8]} 50... Re4 {[%clk
0:00:04.8]} 51. Ra6 {[%clk 0:00:11]} 51... a4 {[%clk 0:00:06]} 52. h5 {[%clk
0:00:12]} 52... Re3 {[%clk 0:00:06.3]} 53. Kg3 {[%clk 0:00:12.9]} 53... a3
{[%clk 0:00:07.4]} 54. Kf4 {[%clk 0:00:13]} 54... Rb3 {[%clk 0:00:08.4]} 55. g5
{[%clk 0:00:12.9]} 55... Rb4+ {[%clk 0:00:06.5]} 56. Kf5 {[%clk 0:00:13.4]}
56... Rb3 {[%clk 0:00:05.9]} 57. Ne5 {[%clk 0:00:13.3]} 57... Rh3 {[%clk
0:00:06]} 58. Ra7+ {[%clk 0:00:13.4]} 58... Kf8 {[%clk 0:00:06.8]} 59. h6 {[%clk
0:00:13.5]} 59... Ke8 {[%clk 0:00:07.3]} 60. Ke6 {[%clk 0:00:08.8]} 60... Kd8
{[%clk 0:00:07.5]} 61. g6 {[%clk 0:00:06.9]} 61... Rxh6 {[%clk 0:00:07.6]} 62.
Nf7+ {[%clk 0:00:07.2]} 1-0

[Event "GrandPrix_30.05"]
[Site "Chess.com"]
[Date "2020.05.30"]
[Round "8"]
[White "LiamVrolijk"]
[Black "Alexander_Donchenko"]
[Result "1-0"]
[WhiteElo "2535"]
[BlackElo "2583"]
[TimeControl "600+2"]
[EndTime "12:01:25 PDT"]
[Termination "LiamVrolijk won by resignation"]

1. d4 {[%clk 0:10:01.9]} 1... Nf6 {[%clk 0:10:00.4]} 2. c4 {[%clk 0:10:02.2]}
2... e6 {[%clk 0:10:01.8]} 3. Nc3 {[%clk 0:10:03.2]} 3... Bb4 {[%clk 0:10:02.4]}
4. Qc2 {[%clk 0:10:04.7]} 4... d5 {[%clk 0:10:02.6]} 5. a3 {[%clk 0:10:05.8]}
5... Bxc3+ {[%clk 0:10:01.7]} 6. Qxc3 {[%clk 0:10:07.7]} 6... Nbd7 {[%clk
0:10:01.4]} 7. cxd5 {[%clk 0:09:52.9]} 7... exd5 {[%clk 0:09:52]} 8. Bf4 {[%clk
0:09:48.9]} 8... c6 {[%clk 0:09:45.2]} 9. h3 {[%clk 0:09:24]} 9... O-O {[%clk
0:09:42.5]} 10. e3 {[%clk 0:09:23.9]} 10... Ne4 {[%clk 0:09:39.9]} 11. Qc2
{[%clk 0:09:19.2]} 11... c5 {[%clk 0:08:41.1]} 12. dxc5 {[%clk 0:08:30.7]} 12...
Ndxc5 {[%clk 0:08:36.9]} 13. Nf3 {[%clk 0:08:30.1]} 13... Bf5 {[%clk 0:08:24.7]}
14. Be2 {[%clk 0:05:39.7]} 14... Ne6 {[%clk 0:06:28.4]} 15. Qa4 {[%clk
0:05:06.7]} 15... Qb6 {[%clk 0:05:51.9]} 16. Qb4 {[%clk 0:04:56.8]} 16... Nxf4
{[%clk 0:05:50.7]} 17. Qxb6 {[%clk 0:04:43.2]} 17... Nxg2+ {[%clk 0:05:49.4]}
18. Kf1 {[%clk 0:04:44.6]} 18... axb6 {[%clk 0:05:38]} 19. Kxg2 {[%clk
0:04:45.6]} 19... Rfc8 {[%clk 0:05:12.5]} 20. Nd4 {[%clk 0:04:45.7]} 20... Bd7
{[%clk 0:04:56.1]} 21. Bg4 {[%clk 0:04:37.7]} 21... Nf6 {[%clk 0:04:54.6]} 22.
Bxd7 {[%clk 0:04:18.9]} 22... Nxd7 {[%clk 0:04:56.5]} 23. Rac1 {[%clk
0:04:18.8]} 23... Kf8 {[%clk 0:04:43.1]} 24. Nb5 {[%clk 0:03:55.5]} 24... Rc6
{[%clk 0:04:12.8]} 25. Rcd1 {[%clk 0:02:35.9]} 25... Nf6 {[%clk 0:02:57.6]} 26.
Nc3 {[%clk 0:02:32.3]} 26... Rc5 {[%clk 0:02:49.3]} 27. Rd4 {[%clk 0:02:29.8]}
27... Ke7 {[%clk 0:02:46.7]} 28. Rhd1 {[%clk 0:02:30.6]} 28... Ke6 {[%clk
0:02:31.2]} 29. Rb4 {[%clk 0:02:14.8]} 29... Rc6 {[%clk 0:02:16.2]} 30. Ne2
{[%clk 0:02:11.1]} 30... Kd7 {[%clk 0:01:31.1]} 31. Nd4 {[%clk 0:02:10]} 31...
Rd6 {[%clk 0:01:30.9]} 32. Nf5 {[%clk 0:02:02.3]} 32... Rc6 {[%clk 0:01:32]} 33.
Nd4 {[%clk 0:02:02.4]} 33... Rd6 {[%clk 0:00:55.8]} 34. Nf5 {[%clk 0:01:58.4]}
34... Re6 {[%clk 0:00:55.6]} 35. Nd4 {[%clk 0:01:56.2]} 35... Re5 {[%clk
0:00:21.1]} 36. Rxb6 {[%clk 0:01:53.9]} 36... Rg5+ {[%clk 0:00:22.2]} 37. Kf1
{[%clk 0:01:52]} 37... Kc7 {[%clk 0:00:19.7]} 38. Rb5 {[%clk 0:01:43.4]} 38...
Rc8 {[%clk 0:00:16]} 39. Rc5+ {[%clk 0:01:18.4]} 39... Kb8 {[%clk 0:00:16.5]}
40. Rxc8+ {[%clk 0:01:19.1]} 40... Kxc8 {[%clk 0:00:18.4]} 41. Rc1+ {[%clk
0:01:20.7]} 41... Kd7 {[%clk 0:00:17.5]} 42. Nb5 {[%clk 0:00:57.1]} 42... Ne8
{[%clk 0:00:18.1]} 43. b4 {[%clk 0:00:57.2]} 43... Rh5 {[%clk 0:00:18.2]} 44.
Kg2 {[%clk 0:00:57.8]} 44... Rg5+ {[%clk 0:00:19.6]} 45. Kf3 {[%clk 0:00:58]}
45... Rf5+ {[%clk 0:00:20.7]} 46. Kg2 {[%clk 0:00:57.3]} 46... Re5 {[%clk
0:00:12.8]} 47. a4 {[%clk 0:00:52.1]} 47... Re4 {[%clk 0:00:12.9]} 48. Nc3
{[%clk 0:00:40.2]} 48... Rc4 {[%clk 0:00:06.5]} 49. Na2 {[%clk 0:00:38.4]} 49...
Kc6 {[%clk 0:00:02.8]} 50. Rxc4+ {[%clk 0:00:26.1]} 50... dxc4 {[%clk
0:00:04.7]} 51. Nc3 {[%clk 0:00:27.9]} 51... Nf6 {[%clk 0:00:04.6]} 52. e4
{[%clk 0:00:25.5]} 52... Nd7 {[%clk 0:00:03.1]} 53. f4 {[%clk 0:00:19.1]} 53...
f5 {[%clk 0:00:03.9]} 54. Kf3 {[%clk 0:00:15]} 54... fxe4+ {[%clk 0:00:03.8]}
55. Kxe4 {[%clk 0:00:16.9]} 55... Nb6 {[%clk 0:00:03]} 56. Kd4 {[%clk
0:00:14.8]} 56... g6 {[%clk 0:00:03]} 57. a5 {[%clk 0:00:14.9]} 57... Nc8 {[%clk
0:00:04.1]} 58. b5+ {[%clk 0:00:14.5]} 58... Kd7 {[%clk 0:00:05.4]} 59. Ne4
{[%clk 0:00:13.1]} 59... Ne7 {[%clk 0:00:03.1]} 60. Kxc4 {[%clk 0:00:12.6]}
60... Nf5 {[%clk 0:00:04.7]} 61. Kd5 {[%clk 0:00:07.9]} 61... Ne3+ {[%clk
0:00:05.6]} 62. Kd4 {[%clk 0:00:08.5]} 62... Nf5+ {[%clk 0:00:04.6]} 63. Kc5
{[%clk 0:00:09.9]} 63... Kc7 {[%clk 0:00:06.1]} 64. b6+ {[%clk 0:00:11.1]} 64...
Kc8 {[%clk 0:00:06.5]} 65. Nd6+ {[%clk 0:00:12]} 65... Nxd6 {[%clk 0:00:05.8]}
66. Kxd6 {[%clk 0:00:13.9]} 66... Kd8 {[%clk 0:00:05.7]} 67. a6 {[%clk
0:00:14.1]} 1-0

[Event "GrandPrix_30.05"]
[Site "Chess.com"]
[Date "2020.05.30"]
[Round "8"]
[White "A_N_D-R_E_I"]
[Black "Meizon19"]
[Result "1/2-1/2"]
[WhiteElo "2147"]
[BlackElo "2304"]
[TimeControl "600+2"]
[EndTime "12:01:37 PDT"]
[Termination "Game drawn by repetition"]

1. e4 {[%clk 0:10:01.9]} 1... c5 {[%clk 0:10:00.2]} 2. Nf3 {[%clk 0:10:02.5]}
2... d6 {[%clk 0:10:00.7]} 3. d4 {[%clk 0:10:03.2]} 3... cxd4 {[%clk 0:10:01.6]}
4. Qxd4 {[%clk 0:10:05.1]} 4... Nc6 {[%clk 0:09:58.8]} 5. Bb5 {[%clk 0:10:05.8]}
5... Bd7 {[%clk 0:10:00.2]} 6. Qd3 {[%clk 0:10:06.8]} 6... Nf6 {[%clk
0:09:59.5]} 7. c4 {[%clk 0:10:07.8]} 7... g6 {[%clk 0:09:52.5]} 8. Nc3 {[%clk
0:10:08.4]} 8... Bg7 {[%clk 0:09:53.2]} 9. h3 {[%clk 0:10:09.5]} 9... O-O {[%clk
0:09:53.9]} 10. O-O {[%clk 0:10:10.4]} 10... Rc8 {[%clk 0:09:53.3]} 11. Be3
{[%clk 0:10:09.3]} 11... a6 {[%clk 0:09:53.8]} 12. Bxc6 {[%clk 0:10:09.9]} 12...
Bxc6 {[%clk 0:09:54.7]} 13. Rac1 {[%clk 0:10:11.4]} 13... Nd7 {[%clk 0:09:54.7]}
14. Nd4 {[%clk 0:10:12.1]} 14... Ne5 {[%clk 0:09:53.7]} 15. Qe2 {[%clk
0:10:09.9]} 15... Bd7 {[%clk 0:09:44.7]} 16. b3 {[%clk 0:10:08.3]} 16... e6
{[%clk 0:09:32.8]} 17. Rfd1 {[%clk 0:10:07.6]} 17... Qe7 {[%clk 0:09:28.7]} 18.
Qd2 {[%clk 0:09:59.8]} 18... Rfd8 {[%clk 0:09:28]} 19. Bg5 {[%clk 0:09:56.1]}
19... f6 {[%clk 0:09:28.7]} 20. Be3 {[%clk 0:09:55.6]} 20... Be8 {[%clk
0:09:25.7]} 21. f4 {[%clk 0:09:34.9]} 21... Nc6 {[%clk 0:09:24]} 22. Nf3 {[%clk
0:08:57.7]} 22... Bf7 {[%clk 0:09:04.4]} 23. Bb6 {[%clk 0:08:43.4]} 23... Rd7
{[%clk 0:09:05.1]} 24. Qe1 {[%clk 0:07:43.9]} 24... Re8 {[%clk 0:08:52.5]} 25.
Rc2 {[%clk 0:07:23.7]} 25... h6 {[%clk 0:08:13.4]} 26. Rcd2 {[%clk 0:07:14.8]}
26... g5 {[%clk 0:06:15.8]} 27. g3 {[%clk 0:06:09.3]} 27... h5 {[%clk
0:05:43.2]} 28. Kh2 {[%clk 0:05:29.2]} 28... g4 {[%clk 0:05:22.6]} 29. Nh4
{[%clk 0:05:17.7]} 29... Nb8 {[%clk 0:04:53]} 30. Rd3 {[%clk 0:04:54.9]} 30...
gxh3 {[%clk 0:04:39.9]} 31. Qd2 {[%clk 0:04:37.8]} 31... Bf8 {[%clk 0:04:25.7]}
32. e5 {[%clk 0:04:07.9]} 32... fxe5 {[%clk 0:03:59.6]} 33. fxe5 {[%clk
0:04:09.8]} 33... d5 {[%clk 0:03:57.5]} 34. cxd5 {[%clk 0:03:45.1]} 34... exd5
{[%clk 0:03:58.4]} 35. Nxd5 {[%clk 0:03:16.9]} 35... Qxe5 {[%clk 0:03:57.7]} 36.
Nf4 {[%clk 0:02:07.8]} 36... Rxd3 {[%clk 0:03:53.2]} 37. Qxd3 {[%clk 0:02:08.1]}
37... Nc6 {[%clk 0:03:47.1]} 38. Qf5 {[%clk 0:01:45.8]} 38... Qxf5 {[%clk
0:03:42.3]} 39. Nxf5 {[%clk 0:01:46.2]} 39... Ne5 {[%clk 0:02:46.7]} 40. Kxh3
{[%clk 0:01:47]} 40... Rc8 {[%clk 0:02:37.9]} 41. Nd6 {[%clk 0:01:11.4]} 41...
Bxd6 {[%clk 0:02:33.8]} 42. Rxd6 {[%clk 0:01:13.3]} 42... Rc2 {[%clk 0:02:30.2]}
43. Rd8+ {[%clk 0:01:13.5]} 43... Kh7 {[%clk 0:02:29.4]} 44. Bd4 {[%clk
0:01:13]} 44... Rd2 {[%clk 0:01:55.8]} 45. Bb6 {[%clk 0:00:34]} 45... Rxa2
{[%clk 0:01:41]} 46. b4 {[%clk 0:00:19.9]} 46... Ng4 {[%clk 0:01:27.5]} 47. Kh4
{[%clk 0:00:18.6]} 47... Kh6 {[%clk 0:01:10.2]} 48. Rd6+ {[%clk 0:00:18.8]}
48... Kg7 {[%clk 0:01:10]} 49. Bd4+ {[%clk 0:00:18.5]} 49... Kf8 {[%clk
0:01:06.6]} 50. Kg5 {[%clk 0:00:16.1]} 50... Ke8 {[%clk 0:00:31]} 51. Rb6 {[%clk
0:00:16.5]} 51... Rd2 {[%clk 0:00:28.8]} 52. Bc5 {[%clk 0:00:08.8]} 52... Rd7
{[%clk 0:00:25.1]} 53. Nxh5 {[%clk 0:00:08.3]} 53... Rd5+ {[%clk 0:00:21.5]} 54.
Kxg4 {[%clk 0:00:09]} 54... Bxh5+ {[%clk 0:00:22]} 55. Kf4 {[%clk 0:00:10.5]}
55... Rd7 {[%clk 0:00:22]} 56. g4 {[%clk 0:00:08.1]} 56... Bf7 {[%clk
0:00:22.3]} 57. Kf5 {[%clk 0:00:08.4]} 57... Bd5 {[%clk 0:00:18.9]} 58. g5
{[%clk 0:00:08.8]} 58... Rf7+ {[%clk 0:00:18.9]} 59. Ke5 {[%clk 0:00:09.6]}
59... Bc6 {[%clk 0:00:18.1]} 60. g6 {[%clk 0:00:09.4]} 60... Rf1 {[%clk
0:00:16.7]} 61. Bd4 {[%clk 0:00:07.4]} 61... Kf8 {[%clk 0:00:14.9]} 62. Kd6
{[%clk 0:00:08]} 62... Rf4 {[%clk 0:00:13.6]} 63. Be5 {[%clk 0:00:07]} 63... Rf5
{[%clk 0:00:14]} 64. Ke6 {[%clk 0:00:07.5]} 64... Rf1 {[%clk 0:00:14.1]} 65. Kd6
{[%clk 0:00:06]} 65... Rd1+ {[%clk 0:00:14.3]} 66. Ke6 {[%clk 0:00:07]} 66...
Rf1 {[%clk 0:00:15.8]} 67. Kd6 {[%clk 0:00:08]} 67... Rd1+ {[%clk 0:00:09.5]}
68. Ke6 {[%clk 0:00:08.6]} 68... Rf1 {[%clk 0:00:10.2]} 1/2-1/2

[Event "GrandPrix_30.05"]
[Site "Chess.com"]
[Date "2020.05.30"]
[Round "8"]
[White "KuzubovYuriy"]
[Black "Durarbayli"]
[Result "0-1"]
[WhiteElo "2553"]
[BlackElo "2686"]
[TimeControl "600+2"]
[EndTime "12:01:49 PDT"]
[Termination "Durarbayli won by resignation"]

1. d4 {[%clk 0:10:01.9]} 1... Nf6 {[%clk 0:09:59.3]} 2. c4 {[%clk 0:10:02.6]}
2... e6 {[%clk 0:10:00.6]} 3. Nf3 {[%clk 0:10:00.8]} 3... b6 {[%clk 0:10:01.3]}
4. g3 {[%clk 0:10:02]} 4... Bb7 {[%clk 0:10:02.5]} 5. Bg2 {[%clk 0:10:02.3]}
5... Be7 {[%clk 0:10:02.4]} 6. Nc3 {[%clk 0:09:56.6]} 6... O-O {[%clk
0:09:59.2]} 7. Qc2 {[%clk 0:09:47.3]} 7... c5 {[%clk 0:09:59.7]} 8. d5 {[%clk
0:09:48.3]} 8... exd5 {[%clk 0:10:01.6]} 9. Ng5 {[%clk 0:09:48.9]} 9... h6
{[%clk 0:10:00.6]} 10. Nxd5 {[%clk 0:07:59.7]} 10... Bxd5 {[%clk 0:09:49.6]} 11.
cxd5 {[%clk 0:07:59.9]} 11... hxg5 {[%clk 0:09:40.7]} 12. d6 {[%clk 0:07:59.1]}
12... Nc6 {[%clk 0:09:41.5]} 13. dxe7 {[%clk 0:07:57.6]} 13... Qxe7 {[%clk
0:09:43.4]} 14. Bxg5 {[%clk 0:07:48.3]} 14... Rad8 {[%clk 0:07:02.1]} 15. e3
{[%clk 0:07:23.3]} 15... d5 {[%clk 0:06:26.5]} 16. O-O {[%clk 0:07:20.9]} 16...
Rd7 {[%clk 0:05:54]} 17. Qa4 {[%clk 0:07:03.6]} 17... Qe6 {[%clk 0:05:47.1]} 18.
Rad1 {[%clk 0:04:14.2]} 18... Ne4 {[%clk 0:04:09.3]} 19. Bxe4 {[%clk 0:04:11.3]}
19... dxe4 {[%clk 0:04:11.2]} 20. Rxd7 {[%clk 0:04:11.6]} 20... Qxd7 {[%clk
0:04:13.1]} 21. Qxe4 {[%clk 0:03:54.4]} 21... f6 {[%clk 0:04:13.7]} 22. Bf4
{[%clk 0:03:50.9]} 22... g5 {[%clk 0:04:09.9]} 23. Qg6+ {[%clk 0:03:10.7]} 23...
Qg7 {[%clk 0:03:09.7]} 24. Qe4 {[%clk 0:03:09.4]} 24... Qd7 {[%clk 0:03:08.8]}
25. Bxg5 {[%clk 0:03:06.9]} 25... fxg5 {[%clk 0:03:05.7]} 26. Qg6+ {[%clk
0:03:07.9]} 26... Kh8 {[%clk 0:03:06.2]} 27. Qh6+ {[%clk 0:03:01.1]} 27... Kg8
{[%clk 0:03:06.2]} 28. Qxg5+ {[%clk 0:03:01.9]} 28... Kf7 {[%clk 0:02:51.6]} 29.
Qh5+ {[%clk 0:02:46]} 29... Ke7 {[%clk 0:02:51.6]} 30. Rd1 {[%clk 0:02:44.9]}
30... Qe6 {[%clk 0:02:51]} 31. Rd5 {[%clk 0:02:33.6]} 31... Qf7 {[%clk
0:02:07.8]} 32. Qxf7+ {[%clk 0:01:51.3]} 32... Rxf7 {[%clk 0:02:09.7]} 33. Rd1
{[%clk 0:01:16.8]} 33... Ne5 {[%clk 0:01:52.7]} 34. f4 {[%clk 0:01:17.4]} 34...
Ng4 {[%clk 0:01:37.1]} 35. h3 {[%clk 0:01:18.1]} 35... Nf6 {[%clk 0:01:37.2]}
36. e4 {[%clk 0:01:17.8]} 36... Ke6 {[%clk 0:01:34.9]} 37. e5 {[%clk 0:01:07]}
37... Nd5 {[%clk 0:01:17.1]} 38. Kf2 {[%clk 0:01:01.6]} 38... Nxf4 {[%clk
0:00:43]} 39. gxf4 {[%clk 0:01:03.5]} 39... Rxf4+ {[%clk 0:00:44.4]} 40. Kg3
{[%clk 0:01:04.3]} 40... Rb4 {[%clk 0:00:36.4]} 41. Rd2 {[%clk 0:01:04.2]} 41...
Kxe5 {[%clk 0:00:37.6]} 42. Rf2 {[%clk 0:01:04.2]} 42... Rd4 {[%clk 0:00:18.7]}
43. h4 {[%clk 0:01:04.5]} 43... Rd3+ {[%clk 0:00:16.6]} 44. Kg4 {[%clk
0:00:51.1]} 44... Rd1 {[%clk 0:00:17.5]} 45. h5 {[%clk 0:00:48.5]} 45... Rg1+
{[%clk 0:00:18.2]} 46. Kh4 {[%clk 0:00:48.5]} 46... c4 {[%clk 0:00:13.9]} 47. h6
{[%clk 0:00:45.2]} 47... b5 {[%clk 0:00:10.8]} 48. Kh5 {[%clk 0:00:43.6]} 48...
b4 {[%clk 0:00:05.1]} 49. Rh2 {[%clk 0:00:25.2]} 49... Kf6 {[%clk 0:00:05.7]}
50. Rf2+ {[%clk 0:00:19.5]} 50... Ke5 {[%clk 0:00:06.9]} 51. Rf3 {[%clk
0:00:16.8]} 51... Rh1+ {[%clk 0:00:04.6]} 52. Kg6 {[%clk 0:00:15.3]} 52... Rg1+
{[%clk 0:00:05.8]} 53. Kf7 {[%clk 0:00:13.7]} 53... Rh1 {[%clk 0:00:06.8]} 54.
Kg7 {[%clk 0:00:12.3]} 54... Rg1+ {[%clk 0:00:08]} 55. Kh8 {[%clk 0:00:11.7]}
55... Kd4 {[%clk 0:00:07.7]} 56. Rf4+ {[%clk 0:00:07.9]} 56... Kd3 {[%clk
0:00:08.8]} 57. Rf3+ {[%clk 0:00:06.6]} 57... Kc2 {[%clk 0:00:07.3]} 58. Rf2+
{[%clk 0:00:06.4]} 58... Kb1 {[%clk 0:00:05.6]} 59. h7 {[%clk 0:00:06.5]} 59...
c3 {[%clk 0:00:04.5]} 60. bxc3 {[%clk 0:00:05.4]} 60... bxc3 {[%clk 0:00:06.4]}
61. Rf7 {[%clk 0:00:02.7]} 61... c2 {[%clk 0:00:07.1]} 62. Rb7+ {[%clk
0:00:03.8]} 62... Ka1 {[%clk 0:00:08]} 63. Rg7 {[%clk 0:00:04.6]} 63... c1=Q
{[%clk 0:00:08.9]} 64. Rxg1 {[%clk 0:00:05.2]} 64... Qxg1 {[%clk 0:00:10.8]} 65.
a4 {[%clk 0:00:06.8]} 65... Qg5 {[%clk 0:00:06.6]} 66. a5 {[%clk 0:00:06.5]}
66... Qxa5 {[%clk 0:00:07.4]} 67. Kg8 {[%clk 0:00:07.9]} 67... Qg5+ {[%clk
0:00:08.2]} 68. Kh8 {[%clk 0:00:08.7]} 68... Qf6+ {[%clk 0:00:09]} 69. Kg8
{[%clk 0:00:10.3]} 69... a5 {[%clk 0:00:10.1]} 70. h8=Q {[%clk 0:00:11.6]} 70...
Qxh8+ {[%clk 0:00:11.5]} 71. Kxh8 {[%clk 0:00:13.5]} 71... a4 {[%clk 0:00:13.2]}
72. Kg7 {[%clk 0:00:15.4]} 72... a3 {[%clk 0:00:15.1]} 73. Kf6 {[%clk
0:00:17.3]} 73... a2 {[%clk 0:00:17]} 74. Ke5 {[%clk 0:00:19.2]} 74... Kb2
{[%clk 0:00:18.9]} 75. Kd4 {[%clk 0:00:21.1]} 75... a1=Q {[%clk 0:00:20.8]} 0-1